Workbook

Sheet 18.01월(여수시)
A1: 2018년 국민기초생활보장수급자 현황
J2: 2018.1.1.기준
A3: 읍면동 | B3: 계 | D3: 생계 | F3: 의료 | H3: 주거 | J3: 교육
B4: 가구 | C4: 가구원 | D4: 가구 | E4: 가구원 | F4: 가구 | G4: 가구원 | H4: 가구 | I4: 가구원 | J4: 가구 | K4: 가구원
A5: 계 | B5: =SUM(D5+F5+H5+J5) -> 7,165 | C5: =SUM(E5+G5+I5+K5) -> 10,052 | D5: =SUM(D6:D32) -> 5,909 | E5: =SUM(E6:E32) -> 8,135 | F5: =SUM(F6:F32) -> 476 | G5: =SUM(G6:G32) -> 779 | H5: =SUM(H6:H32) -> 104 | I5: =SUM(I6:I32) -> 145 | J5: =SUM(J6:J32) -> 676 | K5: =SUM(K6:K32) -> 993
A6: 돌산 | B6: =SUM(D6+F6+H6+J6) -> 359 | C6: =SUM(E6+G6+I6+K6) -> 487 | D6: 298 | E6: 397 | F6: 15 | G6: 21 | H6: 6 | I6: 3 | J6: 40 | K6: 66
A7: 소라 | B7: =SUM(D7+F7+H7+J7) -> 486 | C7: =SUM(E7+G7+I7+K7) -> 755 | D7: 392 | E7: 589 | F7: 39 | G7: 84 | H7: 7 | I7: 9 | J7: 48 | K7: 73
A8: 율촌 | B8: =SUM(D8+F8+H8+J8) -> 260 | C8: =SUM(E8+G8+I8+K8) -> 350 | D8: 230 | E8: 301 | F8: 18 | G8: 23 | H8: 1 | I8: 7 | J8: 11 | K8: 19
A9: 화양 | B9: =SUM(D9+F9+H9+J9) -> 244 | C9: =SUM(E9+G9+I9+K9) -> 326 | D9: 212 | E9: 276 | F9: 15 | G9: 25 | H9: 4 | I9: 7 | J9: 13 | K9: 18
A10: 남 | B10: =SUM(D10+F10+H10+J10) -> 174 | C10: =SUM(E10+G10+I10+K10) -> 211 | D10: 156 | E10: 193 | F10: 8 | G10: 7 | H10: 6 | I10: 3 | J10: 4 | K10: 8
A11: 화정 | B11: =SUM(D11+F11+H11+J11) -> 82 | C11: =SUM(E11+G11+I11+K11) -> 106 | D11: 69 | E11: 85 | F11: 9 | G11: 14 | J11: 4 | K11: 7
A12: 삼산 | B12: =SUM(D12+F12+H12+J12) -> 72 | C12: =SUM(E12+G12+I12+K12) -> 88 | D12: 60 | E12: 72 | F12: 4 | G12: 7 | H12: 2 | I12: 1 | J12: 6 | K12: 8
A13: 동문 | B13: =SUM(D13+F13+H13+J13) -> 212 | C13: =SUM(E13+G13+I13+K13) -> 273 | D13: 184 | E13: 238 | F13: 5 | G13: 5 | H13: 3 | I13: 2 | J13: 20 | K13: 28
A14: 한려 | B14: =SUM(D14+F14+H14+J14) -> 182 | C14: =SUM(E14+G14+I14+K14) -> 244 | D14: 155 | E14: 203 | F14: 12 | G14: 19 | H14: 1 | I14: 1 | J14: 14 | K14: 21
A15: 중앙 | B15: =SUM(D15+F15+H15+J15) -> 175 | C15: =SUM(E15+G15+I15+K15) -> 226 | D15: 149 | E15: 180 | F15: 11 | G15: 17 | H15: 1 | I15: 3 | J15: 14 | K15: 26
A16: 충무 | B16: =SUM(D16+F16+H16+J16) -> 260 | C16: =SUM(E16+G16+I16+K16) -> 356 | D16: 223 | E16: 303 | F16: 14 | G16: 22 | H16: 3 | I16: 3 | J16: 20 | K16: 28
A17: 광림 | B17: =SUM(D17+F17+H17+J17) -> 260 | C17: =SUM(E17+G17+I17+K17) -> 353 | D17: 197 | E17: 263 | F17: 23 | G17: 36 | H17: 7 | I17: 2 | J17: 33 | K17: 52
A18: 서강 | B18: =SUM(D18+F18+H18+J18) -> 133 | C18: =SUM(E18+G18+I18+K18) -> 180 | D18: 114 | E18: 156 | F18: 12 | G18: 16 | H18: 1 | I18: 1 | J18: 6 | K18: 7
A19: 대교 | B19: =SUM(D19+F19+H19+J19) -> 210 | C19: =SUM(E19+G19+I19+K19) -> 285 | D19: 178 | E19: 234 | F19: 13 | G19: 27 | H19: 3 | I19: 6 | J19: 16 | K19: 18
A20: 국 | B20: =SUM(D20+F20+H20+J20) -> 306 | C20: =SUM(E20+G20+I20+K20) -> 445 | D20: 230 | E20: 315 | F20: 23 | G20: 43 | H20: 9 | I20: 22 | J20: 44 | K20: 65
A21: 월호 | B21: =SUM(D21+F21+H21+J21) -> 115 | C21: =SUM(E21+G21+I21+K21) -> 151 | D21: 92 | E21: 129 | F21: 8 | G21: 13 | H21: 4 | I21: 0 | J21: 11 | K21: 9
A22: 여서 | B22: =SUM(D22+F22+H22+J22) -> 229 | C22: =SUM(E22+G22+I22+K22) -> 317 | D22: 153 | E22: 206 | F22: 17 | G22: 27 | H22: 5 | I22: 8 | J22: 54 | K22: 76
A23: 문수 | B23: =SUM(D23+F23+H23+J23) -> 1,097 | C23: =SUM(E23+G23+I23+K23) -> 1,441 | D23: 982 | E23: 1,270 | F23: 60 | G23: 92 | H23: 6 | I23: 13 | J23: 49 | K23: 66
A24: 미평 | B24: =SUM(D24+F24+H24+J24) -> 553 | C24: =SUM(E24+G24+I24+K24) -> 747 | D24: 467 | E24: 639 | F24: 36 | G24: 41 | H24: 7 | I24: 5 | J24: 43 | K24: 62
A25: 둔덕 | B25: =SUM(D25+F25+H25+J25) -> 102 | C25: =SUM(E25+G25+I25+K25) -> 181 | D25: 74 | E25: 141 | F25: 8 | G25: 13 | H25: 1 | I25: 2 | J25: 19 | K25: 25
A26: 만덕 | B26: =SUM(D26+F26+H26+J26) -> 158 | C26: =SUM(E26+G26+I26+K26) -> 231 | D26: 128 | E26: 182 | F26: 8 | G26: 17 | H26: 4 | I26: 2 | J26: 18 | K26: 30
A27: 쌍봉 | B27: =SUM(D27+F27+H27+J27) -> 290 | C27: =SUM(E27+G27+I27+K27) -> 444 | D27: 213 | E27: 322 | F27: 22 | G27: 34 | H27: 5 | I27: 9 | J27: 50 | K27: 79
A28: 시전 | B28: =SUM(D28+F28+H28+J28) -> 277 | C28: =SUM(E28+G28+I28+K28) -> 435 | D28: 200 | E28: 304 | F28: 20 | G28: 46 | H28: 4 | I28: 6 | J28: 53 | K28: 79
A29: 여천 | B29: =SUM(D29+F29+H29+J29) -> 779 | C29: =SUM(E29+G29+I29+K29) -> 1,212 | D29: 632 | E29: 973 | F29: 68 | G29: 116 | H29: 13 | I29: 30 | J29: 66 | K29: 93
A30: 주삼 | B30: =SUM(D30+F30+H30+J30) -> 65 | C30: =SUM(E30+G30+I30+K30) -> 106 | D30: 43 | E30: 69 | F30: 6 | G30: 12 | J30: 16 | K30: 25
A31: 삼일 | B31: =SUM(D31+F31+H31+J31) -> 56 | C31: =SUM(E31+G31+I31+K31) -> 65 | D31: 51 | E31: 61 | F31: 2 | G31: 2 | H31: 1 | I31: 0 | J31: 2 | K31: 2
A32: 묘도 | B32: =SUM(D32+F32+H32+J32) -> 29 | C32: =SUM(E32+G32+I32+K32) -> 37 | D32: 27 | E32: 34 | J32: 2 | K32: 3
